Cogmind - Beta 13 @@@ ROGUE MODE // 2024.04.03 @ 15:45:27 Player: SPRING Result: Destroyed by C-35 Carver with Carbide Saw Performance ------------- Evolutions (7) 3500 Regions Visited (14) 2800 Robots Destroyed (111) 555 Value Destroyed (3921) 3921 Prototype IDs (12) 240 Alien Tech Used (0) 0 Bonus (2289) 2289 TOTAL SCORE: 13305 Bonus ------- High Alert Combat Kills 498 Follower Combat Kills 91 Entered Garrisons 400 Used RIF Installer 500 Entered DSFs 500 Aligned with FarCom 300 Cogmind --------- Core Integrity 0/1300 Matter 221/300 Energy 91/100 System Corruption 3% Temperature Warm (192) Movement Core (50) Location -3/Garrison Parts ------- > --- POWER (2) -------- (None) > --- PROPULSION (6) --- (None) > --- UTILITY (10) ----- Improved Hacking Suite Advanced Hacking Suite Relay Coupler [Brawler] (20) Relay Coupler [Sentry] (15) > --- WEAPON (3) ------- (None) > --- INVENTORY (5) ---- Advanced ECM Suite Improved Phase Shifter Peak State ------------ > --- POWER ------------ Light Antimatter Reactor Particle Reactor > --- PROPULSION ------- Antigrav System Antigrav System Improved Antigrav System Improved Antigrav System Improved Linear Gravjet > --- UTILITY ---------- Advanced Heat Sink Advanced Melee Analysis Suite Advanced Force Field Hacking Suite Hacking Suite Advanced Hacking Suite Relay Coupler [Brawler] Relay Coupler [Duelist] Relay Coupler [Sentry] Improved System Restoration Module > --- WEAPON ----------- Railgun Advanced Remote Datajack > --- INVENTORY -------- Advanced ECM Suite Improved Phase Shifter Advanced Component Analysis Suite [Rating: 109] Favorites ----------- Power Light Nuclear Core Engine Light Ion Engine Power Core Light Nuclear Core Reactor Light Antimatter Reactor Propulsion Light Treads Treads Light Treads Hover Unit Antigrav System Flight Unit VTOL Module Utility Hacking Suite Device Advanced Weight Redist. System Storage High-capacity Storage Unit Processor Targeting Computer Hackware Hacking Suite Protection Hardened Heavy Armor Plating Weapon Heavy Assault Rifle Energy Gun High-powered Shock Rifle Ballistic Gun Heavy Assault Rifle Launcher Missile Launcher Special Weapon Remote Datajack Impact Weapon Powered Hammer Slashing Weapon Great Axe Piercing Weapon Spear Build | -11 -10 -10 -10 -9 -8 -8 -8 -7 -6 -6 -5 -4 -3 -3 ------- Run | Yrd Mat Min Exi Min Mat Gar Mat Fac Fac DSF Fac Fac Res Gar Slots Evolved 14 | . . . . . 4 . . 2 2 . 2 2 2 . Power 1 | . . . . . . . . . . . 1 . . . Propulsion 4 | . . . . . 1 . . 1 1 . . 1 . . Utility 8 | . . . . . 2 . . 1 1 . 1 1 2 . Weapon 1 | . . . . . 1 . . . . . . . . . Parts Attached 175 | 6 6 2 3 2 8 7 12 57 3 11 7 15 34 2 Power 18 | 1 1 . . . 1 1 . 4 . 2 2 3 3 . Engine 2 | 1 1 . . . . . . . . . . . . . Core 12 | . . . . . 1 1 . 4 . 2 2 1 1 . Reactor 4 | . . . . . . . . . . . . 2 2 . Propulsion 50 | 2 . . . 1 3 4 2 16 . 4 2 4 11 1 Treads 19 | 2 . . . 1 3 4 2 4 . . . . 2 1 Leg . | . . . . . . . . . . . . . . . Wheel . | . . . . . . . . . . . . . . . Hover 7 | . . . . . . . . . . . . . 7 . Flight 24 | . . . . . . . . 12 . 4 2 4 2 . Utility 63 | 1 5 . . 1 1 . 3 23 3 2 3 6 14 1 Device 30 | . . . . . . . . 13 2 1 1 4 8 1 Storage 10 | 1 4 . . 1 . . . 3 . . 1 . . . Processor 6 | . 1 . . . . . 1 1 . 1 . . 2 . Hackware 14 | . . . . . . . . 6 1 . 1 2 4 . Protection 3 | . . . . . 1 . 2 . . . . . . . Artifact . | . . . . . . . . . . . . . . . Weapon 44 | 2 . 2 3 . 3 2 7 14 . 3 . 2 6 . Energy Gun 2 | . . . . . . . . . . . . 1 1 . Energy Cannon . | . . . . . . . . . . . . . . . Ballistic Gun 18 | 2 . 1 3 . 2 2 4 2 . . . . 2 . Ballistic Cannon . | . . . . . . . . . . . . . . . Launcher 7 | . . . . . . . . 5 . . . . 2 . Special Weapon 6 | . . 1 . . 1 . 1 2 . . . . 1 . Impact Weapon 1 | . . . . . . . . 1 . . . . . . Slashing Weapon 6 | . . . . . . . 2 3 . . . 1 . . Piercing Weapon 4 | . . . . . . . . 1 . 3 . . . . Special Melee Weapon . | . . . . . . . . . . . . . . . Unidentified Prototypes 6 | . . . 1 . . . . 1 . . 1 2 1 . Parts Lost 56 | . 1 . . . . 1 . 7 . 5 1 13 24 4 Power 6 | . 1 . . . . . . . . . . 2 3 . Propulsion 22 | . . . . . . . . 4 . 3 1 5 8 1 Utility 16 | . . . . . . . . 1 . 1 . 3 8 3 Weapon 12 | . . . . . . 1 . 2 . 1 . 3 5 . Highest Loss Streak 9 | . 1 . . . . 1 . 3 . 4 1 9 9 4 To Critical Strikes 1 | . . . . . . . . . . . . . 1 . Average Slot Usage (%) 90 | . 98 100 97 100 89 81 87 96 93 91 99 90 60 43 Engine 3 | . 13 14 14 14 4 . . . . . . . . . Core 5 | . . . . . 4 9 9 7 6 5 10 5 . . Treads 20 | . 28 28 28 28 26 27 26 14 . . . . . 4 Flight 6 | . . . . . . . . 15 26 25 29 24 4 3 Device 2 | . . . . . . . . 6 6 2 11 14 10 . Storage 8 | . 14 14 14 14 9 9 9 5 6 6 4 4 . . Processor 8 | . 13 14 14 14 9 9 9 4 . 5 1 . 5 3 Hackware 6 | . . . . . . . . 16 26 24 21 20 19 30 Protection 3 | . . . . . 9 9 8 1 . . . . . . Ballistic Gun 15 | . 28 26 25 28 18 17 17 5 . . . . 1 . Special Weapon 2 | . . 1 . . 8 . 1 5 6 1 . . 1 . Slashing Weapon 1 | . . . . . . . 5 4 6 1 . 2 2 . Piercing Weapon 1 | . . . . . . . . 2 . 14 17 10 . . Naked Turns . | . . . . . . . . . . . . . . . Heaviest Build 87 | 12 87 17 23 47 72 78 78 79 23 23 26 34 58 1 Greatest Support 80 | 40 40 40 40 40 60 60 60 80 23 26 29 41 56 7 Greatest Overweight (x) 6 | 1 2 . . 1 1 1 1 3 . . . 1 6 . Average Overweight (x) . | . . . . . 1 1 1 . . . . . . . Largest Inventory Capacity 25 | 8 25 10 10 20 20 20 20 20 8 8 8 8 5 5 Average Capacity 13 | 6 10 10 10 12 20 20 20 12 8 8 7 7 5 5 Most Carried 20 | 3 10 10 10 12 20 20 20 20 8 8 8 8 5 4 Average Carried 12 | 2 6 10 9 10 16 19 19 12 7 7 7 7 4 3 Final Capacity 20 | 8 10 10 10 20 20 20 20 8 8 8 8 5 5 5 Final Carried 20 | 3 10 10 10 12 20 20 20 8 8 8 8 5 3 2 Class Distribution -------------------- 27% | Scavenger-Skirmisher 26% | Mutant 17% | Scavenger-Mutant 10% | Hacker-Sprinter 8% | Scavenger-Sprinter 6% | Hacker-Mutant Dominant Class ---------------- Mutant | -10/Materials Mutant | -10/Mines Mutant | -10/Exiles Mutant | -9/Mines Scavenger-Skirmisher | -8/Materials Scavenger-Skirmisher | -8/Garrison Scavenger-Mutant | -8/Materials Scavenger-Mutant | -7/Factory Hacker-Sprinter | -6/Factory Hacker-Sprinter | -6/DSF Hacker-Sprinter | -5/Factory Hacker-Sprinter | -4/Factory Hacker-Mutant | -3/Research Hacker-Mutant | -3/Garrison Resources | -11 -10 -10 -10 -9 -8 -8 -8 -7 -6 -6 -5 -4 -3 -3 ----------- Run | Yrd Mat Min Exi Min Mat Gar Mat Fac Fac DSF Fac Fac Res Gar Matter Collected 2732 | 213 394 . 59 34 288 217 235 574 . 133 37 165 383 . Remotely 123 | . . . . . . . . . . . . . 123 . Salvage Created 4651 | . 446 . . 40 125 1526 774 675 . 215 . 216 634 . Parts 287 | . 32 . . 1 7 78 41 53 . 24 . 26 25 . Haulers Intercepted 7 | . 1 . . . 1 . 2 2 . . . . 1 . Recyclers Shooed . | . . . . . . . . . . . . . . . Parts Field Recycled . | . . . . . . . . . . . . . . . Retrieved Matter . | . . . . . . . . . . . . . . . Parts Self-Destructed . | . . . . . . . . . . . . . . . Prevented . | . . . . . . . . . . . . . . . Kills | -11 -10 -10 -10 -9 -8 -8 -8 -7 -6 -6 -5 -4 -3 -3 ------- Run | Yrd Mat Min Exi Min Mat Gar Mat Fac Fac DSF Fac Fac Res Gar Combat Hostiles Destroyed 87 | . 10 . . 1 2 36 14 11 . 6 . 1 6 . Melee 22 | . . . . . 1 . 3 9 . 6 . . 3 . Guns 65 | . 10 . . 1 1 36 11 2 . . . 1 3 . Classes Destroyed 14 | . 6 . . . 2 2 1 . . 2 . 1 . . Hauler 7 | . 1 . . . 1 . 2 2 . . . . 1 . Recycler 2 | . 1 . . . . . . . . . . . 1 . Operator 5 | . 1 . . . . . . 3 . . . 1 . . Watcher 10 | . 3 . . . . . 1 4 . . . 2 . . Swarmer 22 | . 6 . . . . 7 3 6 . . . . . . Cutter 4 | . . . . . . . . . . 4 . . . . Grunt 28 | . 4 . . 1 . 16 6 . . . . . 1 . Brawler 3 | . . . . . . . 3 . . . . . . . Duelist 5 | . . . . . . 4 1 . . . . . . . Sentry 12 | . . . . . 1 8 1 1 . . . . 1 . Specialist 2 | . . . . . . . . . . 2 . . . . Hunter 3 | . . . . . 1 . . . . . . . 2 . Programmer 7 | . . . . . . 1 . 4 . . . . 2 . Heavy 1 | . . . . . . . . . . . . 1 . . Best Kill Streak 8 | . 4 . . 1 1 8 7 4 . 4 . 1 2 . Combat Bots Only 8 | . 3 . . 1 1 8 7 4 . 4 . 1 2 . Max Kills in Single Turn 2 | . 2 . . 1 1 2 1 1 . 1 . 1 1 . Gunslinging 1 | . 1 . . . . . . . . . . . . . Exploded . | . . . . . . . . . . . . . . . Melee 1 | . . . . . 1 . 1 1 . 1 . . 1 . Uniques/NPCs Destroyed . | . . . . . . . . . . . . . . . Combat | -11 -10 -10 -10 -9 -8 -8 -8 -7 -6 -6 -5 -4 -3 -3 -------- Run | Yrd Mat Min Exi Min Mat Gar Mat Fac Fac DSF Fac Fac Res Gar Hostile Shots Fired 707 | . 47 . . 14 14 72 41 151 . 35 . 26 217 90 Missed 242 | . 12 . . 2 6 19 12 50 . 16 . 4 78 43 Damage Taken 8077 | . 365 . . 208 153 853 445 1374 . 367 104 996 2229 983 Core 2347 | . 70 . . 58 . 78 32 336 . 90 . 382 484 817 Absorbed by Shields 128 | . . . . . . . . . . . . . 128 . Regen/Repaired (Parts) 1054 | . . . . . 67 . 749 36 . . 202 . . . Core Remaining (%) 76 | 100 . . . 48 . . 80 52 . 89 100 66 . . Volleys Fired 179 | . 37 3 . 4 9 49 22 18 . . . 7 30 . Largest 3 | . 2 2 . 2 3 1 2 2 . . . 1 1 . Hottest 143 | . 40 120 . 40 143 23 46 46 . . . 60 46 . Shots Fired 386 | . 74 6 . 8 19 175 48 19 . . . 7 30 . Gun 370 | . 74 3 . 8 16 175 46 15 . . . 7 26 . Cannon . | . . . . . . . . . . . . . . . Launcher 3 | . . . . . . . . . . . . . 3 . Special 13 | . . 3 . . 3 . 2 4 . . . . 1 . Kinetic 363 | . 74 3 . 8 16 175 46 15 . . . . 26 . Thermal 6 | . . 3 . . 3 . . . . . . . . . Explosive 3 | . . . . . . . . . . . . . 3 . Electromagnetic 7 | . . . . . . . . . . . . 7 . . Robot Hit Streak 26 | . 10 . . 3 5 26 8 10 . . . 7 11 . Robot Miss Streak 4 | . 4 . . 3 3 3 2 3 . . . 1 3 . Penetration Max 1 | . . . . . . . . . . . . . 1 . Secondary Targets 5 | . 3 . . 1 . . 1 . . . . . . . Max Gunslinging Chain 1 | . 1 . . 1 . . 1 . . . . . . . Autonomous 138 | . . . . . . 126 12 . . . . . . . Shots Hit Robots 394 | . 43 . . 4 11 155 44 49 . 22 1 16 49 . Core Hits 169 | . 23 . . 1 6 58 27 20 . 8 . 8 18 . Critical Kills 2 | . 1 . . . . 1 . . . . . . . . Critical Parts Destroyed 5 | . 1 . . . . 4 . . . . . . . . Critical Strikes 21 | . 2 . . . . 5 1 3 . 4 . . 6 . Destroy 7 | . 2 . . . . 5 . . . . . . . . Sever 10 | . . . . . . . 1 1 . 2 . . 6 . Impale 4 | . . . . . . . . 2 . 2 . . . . Melee Attacks 140 | . . . . . . . 10 53 . 31 2 13 31 . Impact 3 | . . . . . . . . 1 . 2 . . . . Slashing 82 | . . . . . . . 10 22 . 12 . 7 31 . Piercing 55 | . . . . . . . . 30 . 17 2 6 . . Sneak Attacks 17 | . . . . . . . 2 4 . 3 1 4 3 . Combat Hostiles 2 | . . . . . . . 1 . . . . . 1 . Follow-up Attacks 9 | . . . . . . . . . . 7 . 2 . . Damage Inflicted 11160 | . 572 . . 64 154 4212 1114 1549 . 797 60 564 2074 . Guns 6388 | . 572 . . 62 125 4212 725 123 . . . 92 477 . Cannons . | . . . . . . . . . . . . . . . Explosions 12 | . . . . . . . . . . . . . 12 . Melee 4711 | . . . . . . . 389 1426 . 797 60 472 1567 . Ramming 25 | . . . . 2 5 . . . . . . . 18 . Kinetic 6296 | . 572 . . 62 125 4212 725 123 . . . . 477 . Thermal 24 | . . . . . 24 . . . . . . . . . Explosive 12 | . . . . . . . . . . . . . 12 . Electromagnetic 92 | . . . . . . . . . . . . 92 . . Impact 146 | . . . . . . . . 63 . 83 . . . . Slashing 3143 | . . . . . . . 389 623 . 292 . 272 1567 . Piercing 1422 | . . . . . . . . 740 . 422 60 200 . . Highest Corruption 7 | . . . . . . . . 5 . . . . 7 3 Average Corruption 2 | . . . . . . . . 2 . . . . 3 3 Corruption Purged 16 | . . . . . . . . 9 . . . . 7 . Corruption Blocked 4 | . . . . . . . . . . 1 3 . . . Effects 15 | . . . . . . . . 7 . . . . 6 2 Message Errors 4 | . . . . . . . . 2 . . . . 2 . Matter Fused 3 | . . . . . . . . 1 . . . . 2 . Heat Flow Errors 2 | . . . . . . . . . . . . . 1 1 Data Loss (minor) 5 | . . . . . . . . 3 . . . . 1 1 Data Loss (major) 1 | . . . . . . . . 1 . . . . . . Overload Shots . | . . . . . . . . . . . . . . . Overflow Damage 336 | . . . . . . . 11 191 . 20 . 18 96 . Projectiles . | . . . . . . . . . . . . . . . Explosions . | . . . . . . . . . . . . . . . Melee 336 | . . . . . . . 11 191 . 20 . 18 96 . Knockbacks 1 | . . . . . . . . 1 . . . . . . Impact 1 | . . . . . . . . 1 . . . . . . Kinetic . | . . . . . . . . . . . . . . . Secondary . | . . . . . . . . . . . . . . . Self-Inflicted Damage 9 | . . . . . . . . . . . . . 9 . Shots . | . . . . . . . . . . . . . . . Rammed 5 | . . . . 1 1 . . . . . . . 3 . Targets Rammed 6 | . . . . 1 2 . . . . . . . 3 . Kicked . | . . . . . . . . . . . . . . . Crushed 1 | . . . . . 1 . . . . . . . . . Highest Temperature 346 | . 2 40 . 9 60 42 175 11 . . 50 84 346 192 Average Temperature 58 | . 1 17 . 2 24 15 72 5 . . 25 35 161 192 Received Heat Transfer 1281 | . 144 . . 108 18 324 216 81 . 36 . 103 170 81 Effects 2 | . . . . . . . . . . . . . 2 . Energy Bleed 1 | . . . . . . . . . . . . . 1 . Interference 1 | . . . . . . . . . . . . . 1 . Siege Activations . | . . . . . . . . . . . . . . . Robots Corrupted . | . . . . . . . . . . . . . . . Combat Hostiles . | . . . . . . . . . . . . . . . Parts Fried 2 | . . . . . . . . 2 . . . . . . Impact Corruptions 3 | . . . . . . . . 3 . . . . . . Robots Melted . | . . . . . . . . . . . . . . . Combat Hostiles . | . . . . . . . . . . . . . . . Parts Melted . | . . . . . . . . . . . . . . . Heat Transferred 50 | . . . . . 50 . . . . . . . . . Parts Sabotaged . | . . . . . . . . . . . . . . . Parts Stolen . | . . . . . . . . . . . . . . . Parts Stripped . | . . . . . . . . . . . . . . . Power Chain Reactions . | . . . . . . . . . . . . . . . Alert | -11 -10 -10 -10 -9 -8 -8 -8 -7 -6 -6 -5 -4 -3 -3 ------- Run | Yrd Mat Min Exi Min Mat Gar Mat Fac Fac DSF Fac Fac Res Gar Peak Influence 1610 | . 206 7 . 58 146 1610 824 277 31 146 76 35 134 164 Initial 784 | . . 7 . . . 2 784 262 31 21 76 . 7 54 Average 234 | . 74 6 . 13 54 608 697 89 31 68 26 15 52 69 Maximum Alert Level 5 | . 1 . . . . 5 3 1 . . . . . . Low Security (%) 69 | 100 92 100 . 100 100 16 . 86 100 100 100 100 100 100 Level 1 7 | . 7 . . . . 21 . 13 . . . . . . Level 2 10 | . . . . . . 27 50 . . . . . . . Level 3 8 | . . . . . . 16 49 . . . . . . . Level 4 3 | . . . . . . 16 . . . . . . . . Level 5 . | . . . . . . . . . . . . . . . High Security . | . . . . . . . . . . . . . . . Max Security . | . . . . . . . . . . . . . . . Squads Dispatched 24 | . 2 . . . 1 . 2 9 . 2 3 3 2 . Investigation 8 | . 1 . . . 1 . . 3 . . 1 1 1 . Extermination 7 | . . . . . . . . 4 . . 1 1 1 . Reinforcement 7 | . 1 . . . . . . 2 . 2 1 1 . . Assault 2 | . . . . . . . 2 . . . . . . . Garrison . | . . . . . . . . . . . . . . . Intercept . | . . . . . . . . . . . . . . . Searches Triggered . | . . . . . . . . . . . . . . . Construction Impeded . | . . . . . . . . . . . . . . . Haulers Reinforced 1 | . . . . . . . . . . . 1 . . . Active Scanning Responses . | . . . . . . . . . . . . . . . Cargo Convoy Interrupts . | . . . . . . . . . . . . . . . Stealth | -11 -10 -10 -10 -9 -8 -8 -8 -7 -6 -6 -5 -4 -3 -3 --------- Run | Yrd Mat Min Exi Min Mat Gar Mat Fac Fac DSF Fac Fac Res Gar Distress Signals 4 | . 2 . . . . . 1 1 . . . . . . Communications Jammed 29 | . . . . . . . . 19 . . . 9 1 . Distress Signals 19 | . . . . . . . . 19 . . . . . . Times Spotted 160 | . 16 . . 2 7 35 21 27 . 8 . 3 19 22 Peak Tracking Total 23 | . 4 . . 2 1 6 5 5 . 5 1 2 9 23 Tactical Retreats 12 | . 3 . . . . . . 3 . 3 . . 2 1 Traps | -11 -10 -10 -10 -9 -8 -8 -8 -7 -6 -6 -5 -4 -3 -3 ------- Run | Yrd Mat Min Exi Min Mat Gar Mat Fac Fac DSF Fac Fac Res Gar Traps Triggered 17 | . . . . 2 1 4 . 3 . 3 2 1 1 . Indirectly . | . . . . . . . . . . . . . . . Trap Hack Attempts . | . . . . . . . . . . . . . . . Triggered . | . . . . . . . . . . . . . . . Disarmed . | . . . . . . . . . . . . . . . Reprogrammed . | . . . . . . . . . . . . . . . Reused . | . . . . . . . . . . . . . . . Traps Extracted . | . . . . . . . . . . . . . . . Installed . | . . . . . . . . . . . . . . . Triggered . | . . . . . . . . . . . . . . . Machines | -11 -10 -10 -10 -9 -8 -8 -8 -7 -6 -6 -5 -4 -3 -3 ---------- Run | Yrd Mat Min Exi Min Mat Gar Mat Fac Fac DSF Fac Fac Res Gar Machines Disabled 1 | . . . . . . 1 . . . . . . . . Max in Single Turn 1 | . . . . . . 1 . . . . . . . . Garrison Access 2 | . . . . . . . . . . . 1 . 1 . Garrison Relay 3 | . . . . . . . . . . . . . . 3 Machines Repaired . | . . . . . . . . . . . . . . . Machines Dismantled . | . . . . . . . . . . . . . . . Machines Sabotaged . | . . . . . . . . . . . . . . . Overloaded Fab Kills . | . . . . . . . . . . . . . . . Hacking | -11 -10 -10 -10 -9 -8 -8 -8 -7 -6 -6 -5 -4 -3 -3 --------- Run | Yrd Mat Min Exi Min Mat Gar Mat Fac Fac DSF Fac Fac Res Gar Machines Accessed 59 | . 8 . . 1 4 3 3 15 3 . 12 4 6 . Terminals 35 | . 6 . . . 1 3 1 9 1 . 8 2 4 . Fabricators 4 | . . . . . . . . 3 . . . 1 . . Repair Stations 7 | . 1 . . . 1 . 1 1 . . 2 1 . . Recycling Units 6 | . 1 . . . . . . 2 2 . 1 . . . Scanalyzers 2 | . . . . . 1 . 1 . . . . . . . Garrison Access 4 | . . . . . 1 . . . . . 1 . 2 . Total Hacks 174 | . 28 . . 1 7 9 17 38 4 . 39 15 16 . Successful 105 | . 15 . . 1 4 2 15 24 4 . 21 8 11 . Failed 69 | . 13 . . . 3 7 2 14 . . 18 7 5 . Catastrophic 18 | . 2 . . . 1 4 . 4 . . 6 . 1 . Database Lockouts . | . . . . . . . . . . . . . . . Manual 48 | . 1 . 1 . . . 3 9 . . 20 7 7 . Terminals 117 | . 26 . . . 1 9 4 21 1 . 33 9 13 . Fabricators 10 | . . . . . . . . 7 . . . 3 . . Repair Stations 24 | . 1 . . . 3 . 9 4 . . 4 3 . . Recycling Units 11 | . 1 . . . . . . 6 3 . 1 . . . Scanalyzers 6 | . . . . . 2 . 4 . . . . . . . Garrison Access 5 | . . . . . 1 . . . . . 1 . 3 . Terminal Hacks 59 | . 14 . . 1 . 2 3 10 1 . 15 5 8 . Record 11 | . 1 . . . . . . 3 . . 2 1 4 . Part Schematic 4 | . . . . . . . . 1 . . 2 . 1 . Robot Analysis 5 | . 2 . . . . . 1 1 . . . 1 . . Prototype ID Bank 3 | . 3 . . . . . . . . . . . . . Open Door 1 | . . . . 1 . . . . . . . . . . Open DSF 2 | . . . . . . . . 1 1 . . . . . Level Access Points 2 | . . . . . . . . 1 . . . . 1 . Branch Access Points 1 | . . . . . . . . . . . 1 . . . Emergency Access Points 3 | . 1 . . . . 1 . . . . . 1 . . Terminal Index 3 | . 1 . . . . . . . . . . 1 1 . Fabricator Index 2 | . . . . . . . . . . . 1 . 1 . Alert Level 2 | . . . . . . . 1 . . . 1 . . . Unreport Threat 4 | . . . . . . . 1 2 . . 1 . . . Locate Traps 3 | . 2 . . . . . . . . . 1 . . . Dispatch Records 1 | . 1 . . . . . . . . . . . . . Maintenance Status 1 | . . . . . . . . . . . 1 . . . Coupling Status 1 | . . . . . . . . 1 . . . . . . Recall Investigation 1 | . . . . . . . . . . . 1 . . . Recall Extermination 1 | . . . . . . . . . . . 1 . . . Recall Reinforcements 1 | . . . . . . . . . . . 1 . . . Hauler Manifests 1 | . 1 . . . . . . . . . . . . . Registered Components 1 | . . . . . . . . . . . 1 . . . Zone Layout 4 | . 2 . . . . . . . . . 1 1 . . Garrison Registry 1 | . . . . . . 1 . . . . . . . . Fabricator Hacks 7 | . . . . . . . . 5 . . . 2 . . Network Status 1 | . . . . . . . . 1 . . . . . . Load Schematic 3 | . . . . . . . . 2 . . . 1 . . Build 3 | . . . . . . . . 2 . . . 1 . . Repair Station Hacks 19 | . . . . . 2 . 8 4 . . 4 1 . . Scan Component 10 | . . . . . 1 . 4 2 . . 2 1 . . Repair 9 | . . . . . 1 . 4 2 . . 2 . . . Recycling Unit Hacks 10 | . 1 . . . . . . 5 3 . 1 . . . Report Inventory 6 | . 1 . . . . . . 2 2 . 1 . . . Retrieve Components 4 | . . . . . . . . 3 1 . . . . . Scanalyzer 5 | . . . . . 1 . 4 . . . . . . . Insert Component 4 | . . . . . 1 . 3 . . . . . . . Analyze 1 | . . . . . . . 1 . . . . . . . Garrison Access Hacks 5 | . . . . . 1 . . . . . 1 . 3 . Unlock Access 2 | . . . . . 1 . . . . . . . 1 . Seal Access 2 | . . . . . . . . . . . 1 . 1 . Coupler Status 1 | . . . . . . . . . . . . . 1 . Unauthorized Hacks . | . . . . . . . . . . . . . . . Terminals . | . . . . . . . . . . . . . . . Fabricators . | . . . . . . . . . . . . . . . Repair Stations . | . . . . . . . . . . . . . . . Recycling Units . | . . . . . . . . . . . . . . . Scanalyzers . | . . . . . . . . . . . . . . . Garrison Access . | . . . . . . . . . . . . . . . Data Cores Recovered 3 | . . . . . . . . 2 . . . 1 . . Used . | . . . . . . . . . . . . . . . Hacking Detections 45 | . 6 . . . 3 3 2 11 1 . 10 4 5 . Full Trace Events 7 | . 1 . . . . 1 . 2 . . 1 1 1 . Feedback Events . | . . . . . . . . . . . . . . . Feedback Blocked . | . . . . . . . . . . . . . . . Robot Schematics Acquired . | . . . . . . . . . . . . . . . Robots Built . | . . . . . . . . . . . . . . . Authchips . | . . . . . . . . . . . . . . . Time . | . . . . . . . . . . . . . . . Total Robot Build Rating . | . . . . . . . . . . . . . . . Part Schematics Acquired 5 | . . . . . . . 1 1 . . 2 . 1 . Parts Built 5 | . . . . . . . . 4 . . . 1 . . Authchips . | . . . . . . . . . . . . . . . Time 151 | . . . . . . . . 84 . . . 67 . . Total Part Build Rating 20 | . . . . . . . . 16 . . . 4 . . Parts Repaired 9 | . . . . . 1 . 4 2 . . 2 . . . Time 290 | . . . . . 26 . 146 70 . . 48 . . . Parts Recycled . | . . . . . . . . . . . . . . . Recycled Matter . | . . . . . . . . . . . . . . . Retrieved Matter . | . . . . . . . . . . . . . . . Retrieved Components 26 | . . . . . . . . 24 2 . . . . . Parts Scanalyzed 1 | . . . . . . . 1 . . . . . . . Part Schematics Acquired 1 | . . . . . . . 1 . . . . . . . Parts Damaged . | . . . . . . . . . . . . . . . Bothacking | -11 -10 -10 -10 -9 -8 -8 -8 -7 -6 -6 -5 -4 -3 -3 ------------ Run | Yrd Mat Min Exi Min Mat Gar Mat Fac Fac DSF Fac Fac Res Gar Used RIF Installer 1 | . . . . . . 1 . . . . . . . . Robots Hacked 6 | . . . . . . . 1 4 . . . . 1 . Non-combat 3 | . . . . . . . 1 2 . . . . . . Combat 3 | . . . . . . . . 2 . . . . 1 . Robot Hacks Applied 6 | . . . . . . . 1 4 . . . . 1 . parse_system 4 | . . . . . . . 1 2 . . . . 1 . no_distress 2 | . . . . . . . . 2 . . . . . . Relay Couplers Released 21 | . . . . . . 4 . . . . . . 3 14 Machine Destruction 17 | . . . . . . . . . . . . . 3 14 Programmers 4 | . . . . . . 4 . . . . . . . . Attached 4 | . . . . . . . . 1 . . . . 3 . Fabnet Peak Effective % . | . . . . . . . . . . . . . . . Robots Rewired . | . . . . . . . . . . . . . . . Allies Hacked . | . . . . . . . . . . . . . . . Hacks Repelled . | . . . . . . . . . . . . . . . Allies | -11 -10 -10 -10 -9 -8 -8 -8 -7 -6 -6 -5 -4 -3 -3 -------- Run | Yrd Mat Min Exi Min Mat Gar Mat Fac Fac DSF Fac Fac Res Gar Total Allies 4 | . . . . 4 . . . . . . . . . . Largest Group 4 | . . . . 4 4 1 . . . . . . . . Highest-Rated Group 71 | . . . . 71 71 16 . . . . . . . . Highest-Rated Ally 31 | . . . . 31 31 16 . . . . . . . . Total Orders . | . . . . . . . . . . . . . . . Ally Attacks 33 | . . . . 14 16 3 . . . . . . . . Total Damage 431 | . . . . 171 216 44 . . . . . . . . Kills 4 | . . . . 1 3 . . . . . . . . . Allies Corrupted . | . . . . . . . . . . . . . . . Allies Melted . | . . . . . . . . . . . . . . . Intel | -11 -10 -10 -10 -9 -8 -8 -8 -7 -6 -6 -5 -4 -3 -3 ------- Run | Yrd Mat Min Exi Min Mat Gar Mat Fac Fac DSF Fac Fac Res Gar Robot Analysis Total 5 | . 2 . . . . . 1 1 . . . 1 . . Derelict Logs Recovered 4 | . . 1 . 3 . . . . . . . . . . Drone Launches . | . . . . . . . . . . . . . . . Drone Recoveries . | . . . . . . . . . . . . . . . Exploration | -11 -10 -10 -10 -9 -8 -8 -8 -7 -6 -6 -5 -4 -3 -3 ------------- Run | Yrd Mat Min Exi Min Mat Gar Mat Fac Fac DSF Fac Fac Res Gar Turns Passed 14358 | 108 1437 417 589 1317 960 2726 1480 2921 104 200 507 564 902 126 Spaces Moved 12051 | 71 758 250 360 730 363 1075 482 3807 303 188 1335 1062 1032 235 Core 125 | 16 . . . . . . . . . . . . 62 47 Treads 4835 | 55 758 250 360 730 363 1075 482 762 . . . . . . Legs . | . . . . . . . . . . . . . . . Wheels . | . . . . . . . . . . . . . . . Hover 282 | . . . . . . . . . . . . . 282 . Flight 6809 | . . . . . . . . 3045 303 188 1335 1062 688 188 Fastest Speed 23 | 50 160 160 160 160 240 240 240 26 31 24 24 23 30 30 Average Speed 97 | 135 168 160 160 174 240 240 240 54 31 27 24 27 50 52 Slowest Speed 350 | 160 320 160 160 240 240 240 240 335 31 40 25 125 350 70 Overloaded Moves . | . . . . . . . . . . . . . . . Propulsion Burnouts . | . . . . . . . . . . . . . . . Robots Hopped 4 | . . . . . . . . . . . . . 1 3 Cave-ins Triggered . | . . . . . . . . . . . . . . . Exploration Rate (%) 38 | 6 74 32 63 81 20 59 20 52 3 90 21 15 13 33 Regions Visited 14 Branch Regions 3 Pre-discovered Areas 2 | . . 1 . 1 . . . . . . . . . . Known Exits Taken 5 | . . . . . 1 . 1 1 1 . . . 1 . Unknown Exits Taken 7 | 1 1 1 1 1 . . . . . . 1 1 . . Scrap Searched 2 | . . . . 2 . . . . . . . . . . Spaces Dug 1 | . . . . . 1 . . . . . . . . . Terrain Destroyed 81 | . . . . . 1 31 4 . . . . . 45 . Melee . | . . . . . . . . . . . . . . . Projectile 37 | . . . . . 1 31 4 . . . . . 1 . AOE 43 | . . . . . . . . . . . . . 43 . Terrain Rammed . | . . . . . . . . . . . . . . . Walls Destroyed . | . . . . . . . . . . . . . . . Machines Disabled . | . . . . . . . . . . . . . . . Actions | -11 -10 -10 -10 -9 -8 -8 -8 -7 -6 -6 -5 -4 -3 -3 --------- Run | Yrd Mat Min Exi Min Mat Gar Mat Fac Fac DSF Fac Fac Res Gar Total 14271 | 80 847 254 377 765 426 1183 762 4578 311 297 1515 1316 1325 235 Wait 1311 | . 26 . . 21 27 15 192 489 4 7 148 204 178 . Move 12028 | 70 757 249 359 729 362 1073 481 3806 302 187 1334 1061 1029 229 Hop 4 | . . . . . . . . . . . . . 1 3 Pick Up 178 | 4 13 . 7 4 12 13 22 62 2 9 14 6 10 . Fast Attach 64 | 5 1 . . . 2 . 5 15 . 5 2 7 22 . Attach 67 | 1 3 . 3 . 2 1 5 23 2 3 5 5 12 2 Detach 28 | . 1 . . . . . . 16 . . 2 4 4 1 Swap 45 | . 2 2 . 2 4 6 2 19 1 3 . 4 . . Drop 171 | . 7 . 8 4 6 17 23 77 . 7 8 9 5 . Fire 179 | . 37 3 . 4 9 49 22 18 . . . 7 30 . Melee 127 | . . . . . . . 10 53 . 22 2 9 31 . Ram 3 | . . . . . . . . . . . . . 3 . Kick . | . . . . . . . . . . . . . . . Crush 3 | . . . . 1 2 . . . . . . . . . Escape Stasis 62 | . . . . . . 8 . . . 54 . . . . Rewire 1 | . . . . . . 1 . . . . . . . . Trap . | . . . . . . . . . . . . . . . Miscellaneous . | . . . . . . . . . . . . . . . Route ------- -11/Scrapyard -10/Materials (discovered 3 exits: [*Mat] / [*Min x2]) -10/Mines -10/Exiles (discovered 2 exits: *Min x2) -9/Mines -8/Materials (discovered 3 exits: Fac / *Sto / Gar) -8/Garrison (discovered 3 exits: *Mat x3) -8/Materials -7/Factory (discovered 4 exits: *Fac x4) -6/Factory -6/DSF -5/Factory (discovered 4 exits: *Fac x2 / Upp x2) -4/Factory -3/Research (discovered 4 exits: Res x3 / Gar) -3/Garrison (discovered 1 exit: [*Res]) History --------- Turn | Location | Event 13 | -11/Scrapyard | Discovered new exit (range 13) 109 | -11/Scrapyard | Entered Materials 312 | -10/Materials | Build established: Mutant 926 | -10/Materials | Discovered new exit (range 15) 972 | -10/Materials | Discovered new exit (range 16) 1133 | -10/Materials | Discovered new exit (range 13) 1546 | -10/Materials | Entered Mines 1577 | -10/Mines | Learned location of Zion (-7) 1681 | -10/Mines | Discovered new exit (range 3) 1787 | -10/Mines | Deemed a non-threat by the Exiles lab entrance 1869 | -10/Mines | Assembled infested the area 1874 | -10/Mines | Assisted by a Guerilla fighting off Assembled 1963 | -10/Mines | Entered Exiles 2022 | -10/Exiles | Discovered new exit (range 15) 2046 | -10/Exiles | Met 8R-AWN 2075 | -10/Exiles | Met EX-HEX 2173 | -10/Exiles | Met EX-BIN 2203 | -10/Exiles | Aligned with FarCom system 2205 | -10/Exiles | Given EX-Vault access code 2275 | -10/Exiles | Opened EX-Vault 2291 | -10/Exiles | Found Prototype Ballistic Gun 2293 | -10/Exiles | Identified AWS/Gauss 2337 | -10/Exiles | Warned to stay clear of 0b10 Research branches 2397 | -10/Exiles | Met EX-DEC 2523 | -10/Exiles | Discovered new exit (range 14) 2552 | -10/Exiles | Left Exiles lab with AWS/Gauss 2552 | -10/Exiles | Entered Mines 2566 | -9/Mines | Met a Derelict who couldn't figure out how to use a Trap Extractor 2686 | -9/Mines | Received a Rocket Launcher from a helpful Derelict 2923 | -9/Mines | Assisted by bots powering up and referring to "LRC-V3" 3169 | -9/Mines | Learned Materials stockpile data 3248 | -9/Mines | Learned location of Storage (-8) 3438 | -9/Mines | Core integrity fell below 50% 3528 | -9/Mines | Learned location of 2 exits from Materials 3789 | -9/Mines | Discovered new exit (range 9) 3806 | -9/Mines | Received a Mining Laser from a helpful Derelict 3869 | -9/Mines | Entered Materials 3869 | -8/Materials | Accompanied by 4 allies 3869 | -8/Materials | Evolved 4 slots: Propulsion x1, Utility x2, Weapon x1 3870 | -8/Materials | Identified exit to Factory 3870 | -8/Materials | Identified exit to Storage 4111 | -8/Materials | Repaired Lgt. Treads 4375 | -8/Materials | Build established: Scavenger-Skirmisher 4826 | -8/Materials | Identified exit to Garrison 4829 | -8/Materials | Entered Garrison 4829 | -8/Garrison | Accompanied by 1 ally 5184 | -8/Garrison | Triggered checkpoint 5274 | -8/Garrison | Triggered checkpoint 5706 | -8/Garrison | Triggered checkpoint 6045 | -8/Garrison | Triggered checkpoint 6180 | -8/Garrison | Triggered checkpoint 6911 | -8/Garrison | Triggered checkpoint 7034 | -8/Garrison | Triggered checkpoint 7056 | -8/Garrison | Installed Relay Interface Framework 7437 | -8/Garrison | Destroyed 8 combat bots 7459 | -8/Garrison | Discovered new exit (range 14) 7538 | -8/Garrison | Discovered new exit (range 64) 7538 | -8/Garrison | Discovered new exit (range 7) 7538 | -8/Garrison | Discovered new exit (range 65) 7555 | -8/Garrison | Entered Materials 7771 | -8/Materials | Repaired Hrd. Heavy Armor Plating 7798 | -8/Materials | Repaired Lgt. Treads 7955 | -8/Materials | First assault squad dispatched 8050 | -8/Materials | Destroyed 7 combat bots 8190 | -8/Materials | Repaired Hrd. Heavy Armor Plating 8258 | -8/Materials | Repaired Hvy. Assault Rifle 8317 | -8/Materials | Build established: Scavenger-Mutant 8867 | -8/Materials | Discovered exit to Factory (range 4) 9035 | -8/Materials | Entered Factory 9035 | -7/Factory | Evolved 2 slots: Propulsion x1, Utility x1 10661 | -7/Factory | Build established: Scavenger-Sprinter 10720 | -7/Factory | Repaired VTOL Module 10760 | -7/Factory | Repaired Lgt. Nuclear Core 10827 | -7/Factory | Fabricated Xenon Bombardment Thruster? 11490 | -7/Factory | Lost 3 parts (2n1w) 11557 | -7/Factory | Fabricated Xenon Bombardment Thruster? 11788 | -7/Factory | Identified exit to Factory 11920 | -7/Factory | Build established: Hacker-Sprinter 11956 | -7/Factory | Entered another Factory area 11956 | -6/Factory | Evolved 2 slots: Propulsion x1, Utility x1 12059 | -6/Factory | Identified exit to DSF 12060 | -6/Factory | Entered DSF 12108 | -6/DSF | Discovered new exit (range 12) 12127 | -6/DSF | Additional patrols routed to DSF 12246 | -6/DSF | Lost 4 parts (3n1u) 12260 | -6/DSF | Entered Factory 12260 | -5/Factory | Evolved 2 slots: Power x1, Utility x1 12449 | -5/Factory | Discovered new exit (range 5) 12538 | -5/Factory | Repaired Enh. Nuclear Core 12599 | -5/Factory | Identified exit to Upper Caves 12628 | -5/Factory | Repaired Sml. Storage Unit 12750 | -5/Factory | Discovered new exit (range 15) 12767 | -5/Factory | Entered another Factory area 12767 | -4/Factory | Evolved 2 slots: Propulsion x1, Utility x1 13095 | -4/Factory | Fabricated Cld. VTOL Module? 13163 | -4/Factory | Discovered new exit (range 15) 13300 | -4/Factory | Lost 9 parts (5n2u2w) 13303 | -4/Factory | Found Prototype Device 13303 | -4/Factory | Identified Active Sensor Suite 13331 | -4/Factory | Entered Research 13331 | -3/Research | Evolved 2 slots: Utility x2 13361 | -3/Research | Lost 3 parts (2p1u) 13549 | -3/Research | Build established: Hacker-Mutant 13814 | -3/Research | Lost 5 parts (1p1n2u1w) 13932 | -3/Research | Lost 6 parts (4u2w) 14138 | -3/Research | Identified exit to Research 14166 | -3/Research | Lost 9 parts (2p5n1u1w) 14231 | -3/Research | Identified exit to Garrison 14233 | -3/Research | Entered Garrison 14246 | -3/Garrison | Triggered checkpoint 14316 | -3/Garrison | Garrison Relay disabled 14316 | -3/Garrison | Garrison Relay disabled 14320 | -3/Garrison | Triggered checkpoint 14333 | -3/Garrison | Spotted B-86 Titan 14334 | -3/Garrison | Core integrity fell below 50% 14334 | -3/Garrison | Triggered checkpoint 14342 | -3/Garrison | Core integrity fell below 20% 14355 | -3/Garrison | Discovered new exit (range 8) 14359 | -3/Garrison | Destroyed by C-35 Carver with Carbide Saw Last Messages --------------- 14317_ C-35 Carver knocked back. 14320_ Beams of light sweep through the air. An alarm sounds. 14322_ P-80 Master resets Y-72 Warden, system corruption cleaned. 14322_ Biometal Medium Treads severed. 14324_ System corrupted: Component data lost. 14326_ Adv. Medium Treads severed. 14334_ Beams of light sweep through the air. An alarm sounds. 14334_ Imp. Diametric Drive destroyed. [Achievement: Hunted] 14335_ Adv. Melee Analysis Suite destroyed. 14336_ Relay Coupler [Duelist] destroyed. 14339_ Knocked back. 14345_ Hacking Suite severed. 14355_ EXIT=FOUND 14357_ Adv. Heat Sink severed. 14358_ System corrupted: Heat flow error (+238). [Achievement: 10k Club] Map ----- +----------------------------------------------------+ | ???????????????????????????????# | | ???????????????????????????????# | | ???????????????????????????????# ######## | | ???????????????????????????????# #??????## ##""" | | ???????????????????????????????# #???????# #???? | | ??????????????????????????????## #???????# #???? | | ??????????????????????????????? #???????# #???? | | ???????????????????????????????# #???????# #???? | | ????????????????????l??????????# #???????# #???? | | ????????????????????b??????????# #####+### #???? | | ???????????????????????????????# p #???? | | ???????????????????????????????# p #???? | | ???????????????????????????????# ############???? | | ???????????????????????????????# #??????????????? | | ???????????????????????????????# #??????????????? | | ???????????????????????????????# #??????????????? | | ???????????????????????????????# #??????????????? | | ???????????????????????????????# #??????????????? | | ???????????????????????????????# #??????????????? | | ???????????????????????????????# s#??????????????? | | ???????????????????????????????# s#??????????????? | | ???????????????????????????????# s#??????????????? | | ??????????????????????########## #??????????????? | | ??????????????????????# ss #??????????????? | | ??????????????????????# c !c #??????????????? | | ??????????????????????# <@#########??????????????? | | ??????????????????????# #??????????????????????? | | ??????????????????????#####??????????????????????? | | ?????????????????????????????????????????????????? | | ?????????????????????????????????????????????????? | | ?????????????????????????????????????????????????? | | ?????????????????????????????????????????????????? | | ?????????????????????????????????????????????????? | | ?????????????????????????????????????????????????? | | ?????????????????????????????????????????????????? | | ?????????????????????????????????????????????????? | | ?????????????????????????????????????????????????? | | ?????????????????????????????????????????????????? | | ?????????????????????????????????????????????????? | | ?????????????????????????????????????????????????? | | ?????????????????????????????????????????????????? | | ?????????????????????????????????????????????????? | | ?????????????????????????????????????????????????? | | ?????????????????????????????????????????????????? | | ?????????????????????????????????????????????????? | | ?????????????????????????????????????????????????? | | | | | | | | | +----------------------------------------------------+ Best States ------------- Heat Dissipation 65 Energy Generation 39 Energy Capacity 410 Matter Stores 300 Matter Capacity 300 Sight Range 16 Terrain Scan Density 10 Jamming Range 12 Cloak Strength 3 Power Amplification 30 Additional Mass Support 9 Corruption Block 8 Armor Coverage 600 Phase Shifting 10 Evasion (%) 71 Targeting Accuracy 8 Melee Accuracy 16 Core Analysis 6 Recoil Reduction 4 Kinecelleration 30 Offensive Hacking 46 Defensive Hacking 20 Relay Coupler Types 3 Relay Coupler Value 59 Authchip Count 4 Item Schematics ----------------- Cryofiber Web | -8/Materials | Scanalyzed Xenon Bombardment Thruster | -7/Factory | Hacked Cld. VTOL Module | -5/Factory | Hacked Imp. Hacking Suite | -5/Factory | Hacked Cld. Nuclear Pulse Thruster | -3/Research | Hacked Robot Schematics ------------------ None Fabricated ------------ Xenon Bombardment Thruster | x2 | -7/Factory Xenon Bombardment Thruster | x2 | -7/Factory Cld. VTOL Module | x1 | -4/Factory Alien Tech Used ----------------- None Achievements -------------- 10k Club Armchair Analyst Can't Catch Me Dangerous Findings Hunted I Spy Respectable Loadout Serviceable Loadout Total Silence Use The Force Watch This! Challenges ------------ None Game ------ Seed GodGrenadeDrive Manual? 0 Play Time 04:47:54 Cumulative 20.2 hours Start 2024.04.03 @ 09:22:15 End 2024.04.03 @ 15:45:27 Sessions 1 Manual Loads 0 Difficulty Rogue Special Mode None Game No. 8 Rogue 8 Adventurer 0 Explorer 0 Win Type - Total 0 Types 0/0/0/0/0/0/0/0/0 Lore% 15 Gallery% 15 Achievement% 17 Wizard Run 0 Options --------- Layout 1 ASCII 0 Keyboard 1 Movement Arrows Keybinds 0 Fullscreen 2 Font 32/Dina Map View 50x40 Zoom Use 0% Tactical HUD 1 Map Filters NONE Filters NONE Steam 1 RUN: 54d9c01b-a021-4bdc-9505-aec2f9b79fbf